[Event "Netanya Open 2019"]
[Site "Netanya"]
[Date "2019.07.01"]
[Round "8.7"]
[White "Roiz, Michael"]
[Black "Flom, Gabriel"]
[Result "1-0"]
[ECO "A30"]
[WhiteElo "2603"]
[BlackElo "2480"]
[Annotator "ChessBase"]
[PlyCount "47"]
[EventDate "2019.06.23"]
[EventType "swiss"]
[EventCountry "ISR"]
[SourceTitle "playchess.com"]
[Source "ChessBase"]
[SourceQuality "1"]
[TimeControl "40/5400+30:1800+30"]

1. Nf3 {[%emt 0:00:00]} Nf6 {[%emt 0:00:00]} 2. g3 {[%emt 0:04:42]} c5 {[%emt 0:00:00]} 3. Bg2 {[%emt 0:00:29]} Nc6 {[%emt 0:00:00]} 4. c4 {[%emt 0:00:06]} d5 {[%emt 0:00:39]} 5. cxd5 {[%emt 0:00:32]} Nxd5 {[%emt 0:00:05]} 6. d4 {[%emt 0:00:10]} cxd4 {[%emt 0:00:29]} 7. Nxd4 {[%emt 0:00:11]} Ndb4 {[%emt 0:00:24]} 8. Nxc6 {[%emt 0:00:07]} Qxd1+ {[%emt 0:00:19]} 9. Kxd1 {[%emt 0:00:04]} Nxc6 {[%emt 0:00:04]} 10. Nc3 {[%emt 0:00:05]} g6 {[%emt 0:15:42]} 11. Nb5 {[%emt 0:02:59]} Kd8 {[%emt 0:04:06]} 12. Be3 {[%emt 0:00:37]} Bg7 {[%emt 0:01:10]} 13. Kc2 {[%emt 0:02:06]} Bf5+ {[%emt 0:02:11]} 14. Kb3 {[%emt 0:00:22]} e5 {[%emt 0:20:35]} 15. Rad1+ {[%emt 0:40:45]} Ke7 {[%emt 0:00:13]} 16. Nc7 {[%emt 0:03:15]} Be6+ {[%emt 0:12:35]} 17. Nxe6 {[%emt 0:01:21]} fxe6 {[%emt 0:01:08]} 18. Bc5+ {[%emt 0:07:23]} Kf6 {[%emt 0:00:13]} 19. Bxc6 {[%emt 0:01:19]} Rhc8 {[%emt 0:04:32]} 20. Rd7 {[%emt 0:01:43]} Rxc6 {[%emt 0:00:10]} 21. Be7+ {[%emt 0:00:26]} Kf7 {[%emt 0:01:05]} 22. Rxb7 {[%emt 0:01:23]} a5 {[%emt 0:00:58]} 23. a4 {[%emt 0:02:07]} Bf6 {[%emt 0:07:15]} 24. Bd8+ {[%emt 0:02:31]} 1-0

[Event "Netanya Open 2019"]
[Site "Netanya"]
[Date "2019.07.01"]
[Round "8.8"]
[White "Mikhalevski, Victor"]
[Black "Grinberg, Eyal"]
[Result "1/2-1/2"]
[ECO "A14"]
[WhiteElo "2579"]
[BlackElo "2474"]
[Annotator "ChessBase"]
[PlyCount "132"]
[EventDate "2019.06.23"]
[EventType "swiss"]
[EventCountry "ISR"]
[SourceTitle "playchess.com"]
[Source "ChessBase"]
[SourceQuality "1"]
[TimeControl "40/5400+30:1800+30"]

1. c4 {[%emt 0:00:07]} Nf6 {[%emt 0:00:00]} 2. Nf3 {[%emt 0:00:53]} c5 {[%emt 0:01:16]} 3. g3 {[%emt 0:01:07]} b6 {[%emt 0:00:32]} 4. Bg2 {[%emt 0:01:51]} Bb7 {[%emt 0:00:06]} 5. O-O {[%emt 0:00:22]} e6 {[%emt 0:00:53]} 6. b3 {[%emt 0:00:32]} Be7 {[%emt 0:00:10]} 7. Bb2 {[%emt 0:00:11]} O-O {[%emt 0:00:07]} 8. Nc3 {[%emt 0:01:04]} d5 {[%emt 0:02:12]} 9. e3 {[%emt 0:02:14]} Nbd7 {[%emt 0:08:28]} 10. Qe2 {[%emt 0:03:10]} Rc8 {[%emt 0:02:46]} 11. Rac1 {[%emt 0:12:06]} dxc4 {[%emt 0:04:46]} 12. bxc4 {[%emt 0:01:33]} Qc7 {[%emt 0:00:28]} 13. Rfd1 {[%emt 0:07:48]} Rfe8 {[%emt 0:06:05]} 14. d3 {[%emt 0:11:07]} a6 {[%emt 0:05:40]} 15. Rb1 {[%emt 0:02:04]} Ng4 {[%emt 0:09:22]} 16. Ba1 {[%emt 0:06:03]} Bf6 {[%emt 0:03:54]} 17. a4 {[%emt 0:08:30]} Bc6 {[%emt 0:09:27]} 18. Ne1 {[%emt 0:13:30]} Bxg2 {[%emt 0:02:45]} 19. Nxg2 {[%emt 0:00:20]} Nge5 {[%emt 0:05:39]} 20. Ne4 {[%emt 0:02:53]} Be7 {[%emt 0:00:21]} 21. f4 {[%emt 0:03:48]} Nc6 {[%emt 0:01:40]} 22. g4 {[%emt 0:00:08]} Nb4 {[%emt 0:07:07]} 23. g5 {[%emt 0:02:10]} Qc6 {[%emt 0:02:15]} 24. Kh1 {[%emt 0:01:06]} Qxa4 {[%emt 0:02:18]} 25. Rd2 {[%emt 0:04:27]} Qc6 {[%emt 0:01:22]} 26. Rg1 {[%emt 0:00:11]} b5 {[%emt 0:02:08]} 27. Ng3 {[%emt 0:00:44]} Rcd8 {[%emt 0:06:53]} 28. e4 {[%emt 0:01:28]} bxc4 {[%emt 0:02:08]} 29. dxc4 {[%emt 0:00:05]} Nb6 {[%emt 0:00:41]} 30. Rdd1 {[%emt 0:00:19]} Bf8 {[%emt 0:02:05]} 31. Ne3 {[%emt 0:01:20]} Rxd1 {[%emt 0:06:20]} 32. Rxd1 {[%emt 0:00:34]} Qc7 {[%emt 0:02:53]} 33. Ng4 {[%emt 0:03:56]} Rd8 {[%emt 0:01:13]} 34. Nh5 {[%emt 0:01:35]} Rxd1+ {[%emt 0:01:00]} 35. Qxd1 {[%emt 0:00:01]} Nc6 {[%emt 0:01:32]} 36. Ngf6+ {[%emt 0:00:33]} Kh8 {[%emt 0:00:14]} 37. Nxg7 {[%emt 0:00:14]} Bxg7 {[%emt 0:01:09]} 38. Qh5 {[%emt 0:00:08]} h6 {[%emt 0:00:30]} 39. gxh6 {[%emt 0:01:54]} Qd8 {[%emt 0:00:32]} 40. hxg7+ {[%emt 0:03:45]} Kxg7 {[%emt 0:00:07]} 41. Qh7+ {[%emt 0:30:16]} Kf8 {[%emt 0:30:15]} 42. Qh8+ {[%emt 0:00:04]} Ke7 {[%emt 0:00:07]} 43. Nd5+ {[%emt 0:00:04]} Nxd5 {[%emt 0:00:50]} 44. Qxd8+ {[%emt 0:00:00]} Kxd8 {[%emt 0:00:00]} 45. cxd5 {[%emt 0:00:00]} exd5 {[%emt 0:00:00]} 46. exd5 {[%emt 0:00:00]} Nb4 {[%emt 0:00:00]} 47. h4 {[%emt 0:01:11]} Nxd5 {[%emt 0:00:00]} 48. h5 {[%emt 0:00:01]} Nxf4 {[%emt 0:00:00]} 49. h6 {[%emt 0:00:05]} Ke7 {[%emt 0:00:00]} 50. h7 {[%emt 0:00:13]} Ng6 {[%emt 0:00:00]} 51. h8=Q {[%emt 0:00:51]} Nxh8 {[%emt 0:00:00]} 52. Bxh8 {[%emt 0:00:02]} Ke6 {[%emt 0:00:00]} 53. Kg2 {[%emt 0:00:33]} Kd5 {[%emt 0:00:00]} 54. Kf3 {[%emt 0:00:54]} Kc4 {[%emt 0:00:00]} 55. Ke3 {[%emt 0:02:38]} Kb3 {[%emt 0:00:00]} 56. Bf6 {[%emt 0:00:24]} Kc2 {[%emt 0:00:00]} 57. Bd8 {[%emt 0:01:41]} Kb3 {[%emt 0:00:00]} 58. Ba5 {[%emt 0:01:22]} f5 {[%emt 0:00:00]} 59. Bd2 {[%emt 0:02:22]} Kc4 {[%emt 0:03:16]} 60. Be1 {[%emt 0:00:05]} Kb5 {[%emt 0:02:57]} 61. Kf4 {[%emt 0:00:57]} a5 {[%emt 0:00:15]} 62. Kxf5 {[%emt 0:00:01]} a4 {[%emt 0:00:05]} 63. Ke4 {[%emt 0:00:13]} Kc4 {[%emt 0:00:22]} 64. Ke3 {[%emt 0:00:39]} Kb3 {[%emt 0:01:08]} 65. Kd3 {[%emt 0:00:14]} c4+ {[%emt 0:00:48]} 66. Kd4 {[%emt 0:00:02]} a3 {[%emt 0:03:53]} 1/2-1/2

[Event "Netanya Open 2019"]
[Site "Netanya"]
[Date "2019.07.01"]
[Round "8.9"]
[White "Khmelniker, Ilya"]
[Black "Sivuk, Vitaly"]
[Result "0-1"]
[ECO "E13"]
[WhiteElo "2483"]
[BlackElo "2547"]
[Annotator "ChessBase"]
[PlyCount "130"]
[EventDate "2019.06.23"]
[EventType "swiss"]
[EventCountry "ISR"]
[SourceTitle "playchess.com"]
[Source "ChessBase"]
[SourceQuality "1"]
[TimeControl "40/5400+30:1800+30"]

1. d4 {[%emt 0:00:00]} Nf6 {[%emt 0:00:00]} 2. c4 {[%emt 0:00:00]} e6 {[%emt 0:00:00]} 3. Nf3 {[%emt 0:00:00]} b6 {[%emt 0:00:04]} 4. Nc3 {[%emt 0:09:08]} Bb4 {[%emt 0:00:21]} 5. Bg5 {[%emt 0:00:06]} Bb7 {[%emt 0:00:26]} 6. e3 {[%emt 0:02:15]} h6 {[%emt 0:00:47]} 7. Bh4 {[%emt 0:00:15]} g5 {[%emt 0:00:15]} 8. Bg3 {[%emt 0:00:06]} Ne4 {[%emt 0:00:30]} 9. Qc2 {[%emt 0:00:30]} Bxc3+ {[%emt 0:00:30]} 10. bxc3 {[%emt 0:00:30]} d6 {[%emt 0:00:30]} 11. Bd3 {[%emt 0:00:30]} f5 {[%emt 0:00:30]} 12. d5 {[%emt 0:00:30]} Qf6 {[%emt 0:00:30]} 13. Nd4 {[%emt 0:00:30]} Nc5 {[%emt 0:00:30]} 14. f3 {[%emt 0:00:30]} Nbd7 {[%emt 0:00:30]} 15. Nxe6 {[%emt 0:00:30]} Nxe6 {[%emt 0:00:30]} 16. dxe6 {[%emt 0:00:30]} Qxe6 {[%emt 0:00:30]} 17. Bxf5 {[%emt 0:00:30]} Qxe3+ {[%emt 0:00:30]} 18. Kd1 {[%emt 0:00:30]} O-O-O {[%emt 0:00:30]} 19. Re1 {[%emt 0:00:30]} Qc5 {[%emt 0:00:30]} 20. Bf2 {[%emt 0:00:30]} Qxc4 {[%emt 0:00:30]} 21. Bd4 {[%emt 0:00:30]} Rhf8 {[%emt 0:00:30]} 22. Re7 {[%emt 0:00:30]} Kb8 {[%emt 0:00:30]} 23. Bd3 {[%emt 0:00:30]} Qd5 {[%emt 0:00:30]} 24. Qb3 {[%emt 0:00:30]} Nf6 {[%emt 0:00:30]} 25. Qxd5 {[%emt 0:00:30]} Nxd5 {[%emt 0:00:30]} 26. Rh7 {[%emt 0:00:30]} c5 {[%emt 0:00:30]} 27. Bg1 {[%emt 0:00:30]} Nf4 {[%emt 0:00:30]} 28. Bf1 {[%emt 0:00:30]} Rh8 {[%emt 0:00:30]} 29. Rxh8 {[%emt 0:00:30]} Rxh8 {[%emt 0:00:30]} 30. Kd2 {[%emt 1:20:22]} Re8 {[%emt 1:00:50]} 31. Re1 {[%emt 0:00:30]} Rxe1 {[%emt 0:00:30]} 32. Kxe1 {[%emt 0:00:01]} Bd5 {[%emt 0:02:17]} 33. a3 {[%emt 0:00:29]} Kc7 {[%emt 0:00:57]} 34. Be3 {[%emt 0:01:01]} Kc6 {[%emt 0:04:02]} 35. h4 {[%emt 0:00:30]} b5 {[%emt 0:00:30]} 36. hxg5 {[%emt 0:00:49]} hxg5 {[%emt 0:01:24]} 37. g3 {[%emt 0:01:35]} Ng6 {[%emt 0:00:53]} 38. Kf2 {[%emt 0:00:42]} Ne5 {[%emt 0:00:14]} 39. Bxg5 {[%emt 0:00:35]} Nxf3 {[%emt 0:00:33]} 40. Bf4 {[%emt 0:00:27]} a5 {[%emt 0:10:01]} 41. Ke2 {[%emt 0:21:08]} a4 {[%emt 0:19:37]} 42. Bc1 {[%emt 0:05:55]} Ne5 {[%emt 0:02:56]} 43. Kd2 {[%emt 0:01:50]} Kb6 {[%emt 0:04:29]} 44. Kc2 {[%emt 0:02:34]} Be4+ {[%emt 0:02:20]} 45. Kb2 {[%emt 0:00:19]} Bd3 {[%emt 0:01:49]} 46. Bg2 {[%emt 0:00:02]} Be2 {[%emt 0:01:04]} 47. Kc2 {[%emt 0:01:21]} Bf3 {[%emt 0:01:05]} 48. Bf1 {[%emt 0:00:02]} d5 {[%emt 0:01:38]} 49. Bf4 {[%emt 0:00:32]} Nc6 {[%emt 0:03:23]} 50. Bh3 {[%emt 0:00:35]} Be4+ {[%emt 0:00:21]} 51. Kb2 {[%emt 0:00:42]} d4 {[%emt 0:01:41]} 52. Bd7 {[%emt 0:00:48]} dxc3+ {[%emt 0:01:19]} 53. Kxc3 {[%emt 0:00:06]} Nd4 {[%emt 0:00:15]} 54. Be5 {[%emt 0:01:03]} Nc2 {[%emt 0:00:48]} 55. Kb2 {[%emt 0:00:17]} Ne3 {[%emt 0:00:42]} 56. Be6 {[%emt 0:00:41]} Bd5 {[%emt 0:03:13]} 57. Bxd5 {[%emt 0:00:11]} Nxd5 {[%emt 0:00:02]} 58. g4 {[%emt 0:00:07]} Ne3 {[%emt 0:00:06]} 59. Bg7 {[%emt 0:01:03]} Nxg4 {[%emt 0:00:06]} 60. Bf8 {[%emt 0:00:04]} Kc6 {[%emt 0:00:15]} 61. Kc3 {[%emt 0:00:06]} Ne5 {[%emt 0:00:13]} 62. Kb2 {[%emt 0:00:14]} Kd5 {[%emt 0:00:09]} 63. Be7 {[%emt 0:00:08]} Kc4 {[%emt 0:00:23]} 64. Bf8 {[%emt 0:02:51]} Nd3+ {[%emt 0:00:36]} 65. Ka2 {[%emt 0:00:00]} Kc3 {[%emt 0:00:28]} 0-1

[Event "Netanya Open 2019"]
[Site "Netanya"]
[Date "2019.07.01"]
[Round "8.10"]
[White "Rozentalis, Eduardas"]
[Black "Bronstein, Or"]
[Result "1-0"]
[ECO "B51"]
[WhiteElo "2540"]
[BlackElo "2378"]
[Annotator "ChessBase"]
[PlyCount "83"]
[EventDate "2019.06.23"]
[EventType "swiss"]
[EventCountry "ISR"]
[SourceTitle "playchess.com"]
[Source "ChessBase"]
[SourceQuality "1"]
[TimeControl "40/5400+30:1800+30"]

1. e4 {[%emt 0:00:00]} c5 {[%emt 0:00:00]} 2. Nf3 {[%emt 0:00:00]} d6 {[%emt 0:00:00]} 3. Bb5+ {[%emt 0:00:08]} Nd7 {[%emt 0:00:00]} 4. d4 {[%emt 0:00:36]} cxd4 {[%emt 0:00:00]} 5. Qxd4 {[%emt 0:00:06]} a6 {[%emt 0:00:00]} 6. Bxd7+ {[%emt 0:00:34]} Bxd7 {[%emt 0:00:05]} 7. Nc3 {[%emt 0:00:14]} Rc8 {[%emt 0:11:55]} 8. e5 {[%emt 0:02:16]} dxe5 {[%emt 0:10:54]} 9. Nxe5 {[%emt 0:00:50]} Bc6 {[%emt 0:08:48]} 10. Qxd8+ {[%emt 0:13:35]} Rxd8 {[%emt 0:02:12]} 11. Nxc6 {[%emt 0:00:07]} bxc6 {[%emt 0:00:02]} 12. Ne4 {[%emt 0:00:08]} e6 {[%emt 0:15:12]} 13. Bd2 {[%emt 0:01:15]} Nf6 {[%emt 0:05:37]} 14. Nxf6+ {[%emt 0:00:49]} gxf6 {[%emt 0:00:02]} 15. Bc3 {[%emt 0:07:45]} Be7 {[%emt 0:00:29]} 16. Rd1 {[%emt 0:01:38]} Rd5 {[%emt 0:06:36]} 17. Ke2 {[%emt 0:00:47]} Rg8 {[%emt 0:00:05]} 18. g3 {[%emt 0:00:29]} h5 {[%emt 0:03:47]} 19. Rd4 {[%emt 0:08:16]} Rxd4 {[%emt 0:03:12]} 20. Bxd4 {[%emt 0:00:11]} h4 {[%emt 0:03:19]} 21. Rd1 {[%emt 0:03:27]} hxg3 {[%emt 0:14:39]} 22. fxg3 {[%emt 0:09:48]} f5 {[%emt 0:03:33]} 23. Rd3 {[%emt 0:04:28]} Rg4 {[%emt 0:00:49]} 24. b3 {[%emt 0:03:38]} f6 {[%emt 0:04:41]} 25. Bf2 {[%emt 0:08:23]} e5 {[%emt 0:01:47]} 26. h3 {[%emt 0:00:23]} Rg8 {[%emt 0:02:12]} 27. c4 {[%emt 0:00:22]} Rh8 {[%emt 0:01:55]} 28. h4 {[%emt 0:00:52]} Rh7 {[%emt 0:01:02]} 29. c5 {[%emt 0:03:00]} Rh8 {[%emt 0:00:54]} 30. b4 {[%emt 0:00:37]} Kf7 {[%emt 0:00:27]} 31. Rd7 {[%emt 0:01:58]} Rb8 {[%emt 0:00:13]} 32. Be1 {[%emt 0:02:59]} a5 {[%emt 0:00:27]} 33. bxa5 {[%emt 0:02:30]} Rb2+ {[%emt 0:00:01]} 34. Rd2 {[%emt 0:01:02]} Rb4 {[%emt 0:01:13]} 35. h5 {[%emt 0:02:48]} Ra4 {[%emt 0:00:18]} 36. Rd7 {[%emt 0:04:31]} Rxa2+ {[%emt 0:00:07]} 37. Bd2 {[%emt 0:00:51]} Ra3 {[%emt 0:01:20]} 38. h6 {[%emt 0:01:15]} Rxg3 {[%emt 0:00:12]} 39. a6 {[%emt 0:00:32]} Rg8 {[%emt 0:00:39]} 40. h7 {[%emt 0:02:30]} Ra8 {[%emt 0:00:42]} 41. a7 {[%emt 0:32:42]} Rh8 {[%emt 0:08:28]} 42. Rb7 {[%emt 0:00:00]} 1-0

[Event "Netanya Open 2019"]
[Site "Netanya"]
[Date "2019.07.01"]
[Round "8.11"]
[White "Huzman, Alexander"]
[Black "Birnboim, Nathan"]
[Result "1/2-1/2"]
[ECO "A10"]
[WhiteElo "2588"]
[BlackElo "2379"]
[Annotator "ChessBase"]
[PlyCount "50"]
[EventDate "2019.06.23"]
[EventType "swiss"]
[EventCountry "ISR"]
[SourceTitle "playchess.com"]
[Source "ChessBase"]
[SourceQuality "1"]
[TimeControl "40/5400+30:1800+30"]

1. Nf3 {[%emt 0:00:00]} e6 {[%emt 0:01:08]} 2. c4 {[%emt 0:01:59]} f5 {[%emt 0:03:14]} 3. g3 {[%emt 0:02:16]} Nf6 {[%emt 0:00:36]} 4. Bg2 {[%emt 0:00:57]} Nc6 {[%emt 0:02:39]} 5. O-O {[%emt 0:05:30]} Bd6 {[%emt 0:08:07]} 6. d4 {[%emt 0:04:03]} O-O {[%emt 0:00:45]} 7. Nc3 {[%emt 0:03:20]} a6 {[%emt 0:14:55]} 8. e4 {[%emt 0:05:53]} Nxe4 {[%emt 0:09:21]} 9. Nxe4 {[%emt 0:01:55]} fxe4 {[%emt 0:00:02]} 10. Ng5 {[%emt 0:08:47]} Be7 {[%emt 0:00:27]} 11. Nxe4 {[%emt 0:02:49]} d5 {[%emt 0:00:18]} 12. cxd5 {[%emt 0:00:27]} exd5 {[%emt 0:00:17]} 13. Nc3 {[%emt 0:00:01]} Be6 {[%emt 0:00:27]} 14. Re1 {[%emt 0:00:02]} Bf7 {[%emt 0:00:29]} 15. Bf4 {[%emt 0:00:11]} Qd7 {[%emt 0:05:31]} 16. Rc1 {[%emt 0:09:18]} Rac8 {[%emt 0:13:56]} 17. Bf3 {[%emt 0:04:02]} Rce8 {[%emt 0:03:12]} 18. Bg4 {[%emt 0:03:41]} Qd8 {[%emt 0:00:05]} 19. Na4 {[%emt 0:00:04]} Bb4 {[%emt 0:03:03]} 20. Rxe8 {[%emt 0:15:45]} Rxe8 {[%emt 0:00:26]} 21. Be3 {[%emt 0:00:31]} Na5 {[%emt 0:22:50]} 22. b3 {[%emt 0:01:48]} Ba3 {[%emt 0:01:09]} 23. Rc3 {[%emt 0:08:35]} Bb4 {[%emt 0:00:23]} 24. Rc1 {[%emt 0:01:14]} Ba3 {[%emt 0:00:04]} 25. Rc3 {[%emt 0:00:27]} Bb4 {[%emt 0:00:08]} 1/2-1/2

[Event "Netanya Open 2019"]
[Site "Netanya"]
[Date "2019.07.01"]
[Round "8.12"]
[White "Krayz, Alexander"]
[Black "Kogan, Arthur"]
[Result "1-0"]
[ECO "B44"]
[WhiteElo "2377"]
[BlackElo "2535"]
[Annotator "ChessBase"]
[PlyCount "183"]
[EventDate "2019.06.23"]
[EventType "swiss"]
[EventCountry "ISR"]
[SourceTitle "playchess.com"]
[Source "ChessBase"]
[SourceQuality "1"]
[TimeControl "40/5400+30:1800+30"]

1. e4 {[%emt 0:00:00]} c5 {[%emt 0:00:00]} 2. Nf3 {[%emt 0:00:00]} b6 {[%emt 0:00:13]} 3. c4 {[%emt 0:02:23]} Bb7 {[%emt 0:00:28]} 4. Nc3 {[%emt 0:00:07]} e6 {[%emt 0:00:09]} 5. Be2 {[%emt 0:01:06]} d6 {[%emt 0:04:40]} 6. d4 {[%emt 0:01:30]} cxd4 {[%emt 0:00:45]} 7. Nxd4 {[%emt 0:00:58]} Nf6 {[%emt 0:00:12]} 8. f3 {[%emt 0:03:49]} Nbd7 {[%emt 0:01:39]} 9. O-O {[%emt 0:00:46]} Be7 {[%emt 0:01:17]} 10. Nc2 {[%emt 0:11:42]} O-O {[%emt 0:02:22]} 11. Be3 {[%emt 0:02:01]} a6 {[%emt 0:06:50]} 12. Qd2 {[%emt 0:01:56]} Rc8 {[%emt 0:01:07]} 13. Rfd1 {[%emt 0:01:55]} Qc7 {[%emt 0:03:57]} 14. Rac1 {[%emt 0:01:21]} Qb8 {[%emt 0:03:35]} 15. Kh1 {[%emt 0:01:52]} Kh8 {[%emt 0:05:26]} 16. Bg1 {[%emt 0:00:58]} Rg8 {[%emt 0:01:03]} 17. Ne3 {[%emt 0:04:27]} Bc6 {[%emt 0:09:34]} 18. b4 {[%emt 0:07:43]} g5 {[%emt 0:02:52]} 19. a3 {[%emt 0:03:03]} Rg6 {[%emt 0:03:04]} 20. Qb2 {[%emt 0:10:32]} Bb7 {[%emt 0:03:43]} 21. Rd2 {[%emt 0:02:42]} Kg8 {[%emt 0:04:06]} 22. Rcd1 {[%emt 0:03:37]} h5 {[%emt 0:04:46]} 23. c5 {[%emt 0:05:40]} bxc5 {[%emt 0:01:04]} 24. bxc5 {[%emt 0:00:09]} Nxc5 {[%emt 0:01:48]} 25. Nc4 {[%emt 0:00:50]} Ne8 {[%emt 0:13:38]} 26. Rb1 {[%emt 0:08:04]} Bf6 {[%emt 0:04:01]} 27. e5 {[%emt 0:04:55]} Bxe5 {[%emt 0:00:52]} 28. Nxe5 {[%emt 0:00:42]} dxe5 {[%emt 0:00:04]} 29. Bxc5 {[%emt 0:01:03]} Rxc5 {[%emt 0:00:05]} 30. Ne4 {[%emt 0:00:15]} Rc7 {[%emt 0:01:54]} 31. Bxa6 {[%emt 0:01:15]} f5 {[%emt 0:01:01]} 32. Nf2 {[%emt 0:04:08]} Rgg7 {[%emt 0:02:21]} 33. Rbd1 {[%emt 0:01:21]} Rc8 {[%emt 0:03:45]} 34. Qa2 {[%emt 0:04:56]} Nc7 {[%emt 0:02:23]} 35. Bxb7 {[%emt 0:00:57]} Qxb7 {[%emt 0:00:10]} 36. Nd3 {[%emt 0:00:18]} e4 {[%emt 0:03:17]} 37. fxe4 {[%emt 0:02:53]} Qxe4 {[%emt 0:00:44]} 38. Re2 {[%emt 0:03:05]} Qd5 {[%emt 0:03:19]} 39. Qa1 {[%emt 0:00:07]} Qc4 {[%emt 0:01:40]} 40. Qe5 {[%emt 0:02:47]} Rd8 {[%emt 0:02:21]} 41. Nb2 {[%emt 0:04:35]} Rxd1+ {[%emt 0:02:03]} 42. Nxd1 {[%emt 0:00:29]} Rd7 {[%emt 0:05:52]} 43. Re1 {[%emt 0:00:46]} Qd4 {[%emt 0:08:20]} 44. Qe2 {[%emt 0:03:41]} Qd2 {[%emt 0:01:38]} 45. Qf1 {[%emt 0:00:32]} Qd3 {[%emt 0:00:46]} 46. Qg1 {[%emt 0:01:23]} Qxa3 {[%emt 0:00:59]} 47. Ne3 {[%emt 0:00:18]} Qc3 {[%emt 0:03:56]} 48. Rc1 {[%emt 0:03:53]} Qf6 {[%emt 0:01:22]} 49. Nc4 {[%emt 0:00:18]} f4 {[%emt 0:04:17]} 50. Qe1 {[%emt 0:02:55]} f3 {[%emt 0:02:02]} 51. gxf3 {[%emt 0:04:32]} Qxf3+ {[%emt 0:00:19]} 52. Kg1 {[%emt 0:00:04]} Qg4+ {[%emt 0:03:44]} 53. Kh1 {[%emt 0:00:30]} Qf3+ {[%emt 0:01:11]} 54. Kg1 {[%emt 0:00:05]} Qf4 {[%emt 0:00:51]} 55. Ne5 {[%emt 0:01:29]} Rg7 {[%emt 0:01:54]} 56. Rc2 {[%emt 0:06:28]} g4 {[%emt 0:00:45]} 57. Rf2 {[%emt 0:01:11]} Qd4 {[%emt 0:00:11]} 58. Nc6 {[%emt 0:02:56]} Qc5 {[%emt 0:00:25]} 59. Qe4 {[%emt 0:01:20]} Qd5 {[%emt 0:00:35]} 60. Qc2 {[%emt 0:01:06]} h4 {[%emt 0:01:33]} 61. Rd2 {[%emt 0:01:30]} Qf5 {[%emt 0:00:16]} 62. Qxf5 {[%emt 0:00:56]} exf5 {[%emt 0:00:08]} 63. Rf2 {[%emt 0:00:03]} Rd7 {[%emt 0:01:21]} 64. Rxf5 {[%emt 0:00:07]} Ne6 {[%emt 0:00:07]} 65. Rf6 {[%emt 0:01:25]} Rd1+ {[%emt 0:00:34]} 66. Kf2 {[%emt 0:00:28]} Ng7 {[%emt 0:00:59]} 67. Rf4 {[%emt 0:00:50]} Rd2+ {[%emt 0:00:28]} 68. Kg1 {[%emt 0:00:18]} Rd1+ {[%emt 0:00:27]} 69. Kf2 {[%emt 0:00:12]} Rd2+ {[%emt 0:00:33]} 70. Kg1 {[%emt 0:00:09]} g3 {[%emt 0:00:31]} 71. Ne7+ {[%emt 0:00:08]} Kh7 {[%emt 0:00:12]} 72. Rxh4+ {[%emt 0:00:06]} Nh5 {[%emt 0:00:18]} 73. Rxh5+ {[%emt 0:00:05]} Kg7 {[%emt 0:00:05]} 74. hxg3 {[%emt 0:00:36]} Kf6 {[%emt 0:00:30]} 75. Nd5+ {[%emt 0:00:09]} Kg7 {[%emt 0:00:13]} 76. Nf4 {[%emt 0:00:10]} Rc2 {[%emt 0:00:10]} 77. Re5 {[%emt 0:00:07]} Kf6 {[%emt 0:00:10]} 78. Re2 {[%emt 0:00:08]} Rc4 {[%emt 0:00:17]} 79. Kf2 {[%emt 0:00:13]} Kf5 {[%emt 0:00:12]} 80. Kf3 {[%emt 0:00:09]} Kg5 {[%emt 0:00:14]} 81. Re5+ {[%emt 0:00:11]} Kf6 {[%emt 0:00:03]} 82. Ra5 {[%emt 0:00:16]} Rc3+ {[%emt 0:00:14]} 83. Kg4 {[%emt 0:00:05]} Rb3 {[%emt 0:00:03]} 84. Ra6+ {[%emt 0:00:12]} Kg7 {[%emt 0:00:09]} 85. Nh5+ {[%emt 0:01:25]} Kh7 {[%emt 0:00:10]} 86. Nf6+ {[%emt 0:00:05]} Kg7 {[%emt 0:00:07]} 87. Ne4 {[%emt 0:00:05]} Rb1 {[%emt 0:00:27]} 88. Kf4 {[%emt 0:00:14]} Rf1+ {[%emt 0:00:10]} 89. Kg5 {[%emt 0:00:06]} Rb1 {[%emt 0:00:10]} 90. Ra7+ {[%emt 0:00:06]} Kh8 {[%emt 0:00:04]} 91. Kg6 {[%emt 0:00:37]} Rb8 {[%emt 0:00:17]} 92. Nf6 {[%emt 0:00:23]} 1-0

[Event "Netanya Open 2019"]
[Site "Netanya"]
[Date "2019.07.01"]
[Round "8.13"]
[White "Greenfeld, Alon"]
[Black "Gorshtein, Ido"]
[Result "0-1"]
[ECO "D26"]
[WhiteElo "2513"]
[BlackElo "2367"]
[Annotator "ChessBase"]
[PlyCount "58"]
[EventDate "2019.06.23"]
[EventType "swiss"]
[EventCountry "ISR"]
[SourceTitle "playchess.com"]
[Source "ChessBase"]
[SourceQuality "1"]
[TimeControl "40/5400+30:1800+30"]

1. Nf3 {[%emt 0:05:34]} d5 {[%emt 0:00:00]} 2. d4 {[%emt 0:00:38]} Nf6 {[%emt 0:01:12]} 3. c4 {[%emt 0:00:50]} dxc4 {[%emt 0:06:05]} 4. e3 {[%emt 0:04:27]} e6 {[%emt 0:00:36]} 5. Bxc4 {[%emt 0:00:35]} a6 {[%emt 0:00:02]} 6. O-O {[%emt 0:02:24]} b5 {[%emt 0:03:50]} 7. Bd3 {[%emt 0:06:16]} Bb7 {[%emt 0:02:38]} 8. a4 {[%emt 0:02:49]} b4 {[%emt 0:00:08]} 9. Nbd2 {[%emt 0:00:15]} c5 {[%emt 0:01:44]} 10. e4 {[%emt 0:02:52]} cxd4 {[%emt 0:01:26]} 11. e5 {[%emt 0:00:10]} Nd5 {[%emt 0:10:29]} 12. Nc4 {[%emt 0:08:51]} Nd7 {[%emt 0:10:43]} 13. Bg5 {[%emt 0:07:00]} Qb8 {[%emt 0:03:06]} 14. a5 {[%emt 0:13:36]} h6 {[%emt 0:05:30]} 15. Bh4 {[%emt 0:00:27]} Nf4 {[%emt 0:26:31]} 16. Bc2 {[%emt 0:12:35]} g5 {[%emt 0:11:07]} 17. Ba4 {[%emt 0:04:46]} Bc5 {[%emt 0:00:58]} 18. Bg3 {[%emt 0:04:12]} Bd5 {[%emt 0:01:36]} 19. Rc1 {[%emt 0:01:43]} Ke7 {[%emt 0:00:55]} 20. Nxd4 {[%emt 0:04:50]} Bxd4 {[%emt 0:02:00]} 21. Bxf4 {[%emt 0:00:04]} Bxb2 {[%emt 0:00:28]} 22. Nxb2 {[%emt 0:07:16]} gxf4 {[%emt 0:00:05]} 23. Bxd7 {[%emt 0:00:48]} Rg8 {[%emt 0:02:12]} 24. f3 {[%emt 0:00:10]} Qxe5 {[%emt 0:01:27]} 25. Qd2 {[%emt 0:02:03]} Rad8 {[%emt 0:05:24]} 26. Qxb4+ {[%emt 0:03:54]} Kf6 {[%emt 0:00:09]} 27. Bc6 {[%emt 0:02:26]} Rb8 {[%emt 0:00:51]} 28. Qe1 {[%emt 0:01:17]} Qxe1 {[%emt 0:00:48]} 29. Bd7 {[%emt 0:01:42]} Ke5 {[%emt 0:02:30]} 0-1